bitfinex/quotes_ETHUSD_20241116
["timestamp","ask_amount","ask_price","bid_price","bid_amount"]
[1731776390881,6.17944,3145.3,3144.7,3.74431627]
[1731776391397,8.74,3145.4,3144.9,3.17968]
[1731776391699,8.74,3145.4,3144.8,0.37443163]
[1731776391700,3.17931,3145.4,3144.8,0.37443163]
[1731776391873,3.17931,3145.4,3144.8,3.55419163]
[1731776392197,3.17931,3145.4,3144.8,0.37443163]
[1731776392356,3.17951,3145.2,3144.7,0.01443627]
[1731776392756,3.17955,3145.1,3144.7,0.01443627]
[1731776393000,3.17938,3145.3,3144.7,0.01443627]
[1731776393200,0.61987017,3145.5,3144.7,0.01443627]
[1731776393383,3.0,3145.5,3145.2,0.55]
[1731776393698,3.0,3145.6,3145.2,0.55]
[1731776394360,3.0,3145.6,3145.2,3.72943]
[1731776396164,3.17902,3145.7,3145.2,3.72943]
[1731776396507,3.814797,3145.7,3145.2,3.72943]
[1731776396976,3.17921,3145.5,3145.0,0.55]
[1731776397999,3.17934,3145.4,3144.8,3.72979]
[1731776398212,3.17911,3145.6,3145.0,0.55]
[1731776398501,3.7114952,3145.7,3145.0,0.55]
[1731776398706,3.17925,3145.4,3144.8,0.55]
[1731776398880,3.17904,3145.6,3145.0,3.17964]
[1731776399076,3.17904,3145.6,3144.8,0.55]
[1731776399077,3.17923,3145.5,3144.8,3.72976]
[1731776399261,3.17923,3145.5,3144.8,0.55]
[1731776399460,3.17923,3145.5,3144.9,3.17974]
[1731776399700,3.17923,3145.5,3144.8,0.55]
[1731776400102,3.17941,3145.3,3144.8,0.55]
[1731776400463,3.17946,3145.2,3144.7,0.01443627]
[1731776400670,3.17965,3145.0,3144.7,0.01443627]
[1731776401162,3.17946,3145.2,3144.7,0.01443627]
[1731776401603,3.17946,3145.2,3144.7,3.19437627]
[1731776401903,0.635856,3145.3,3144.8,0.55]
[1731776402105,0.635856,3145.3,3144.7,3.19437627]
[1731776402106,3.1795,3145.2,3144.7,0.01443627]
[1731776402304,3.17956,3145.1,3144.7,0.56443627]
[1731776402672,3.17956,3145.1,3144.7,0.01443627]
[1731776403003,3.815266,3145.3,3144.7,0.01443627]
[1731776403972,3.17976,3144.9,3144.7,0.01443627]
[1731776404173,3.17985,3144.8,3144.7,0.01443627]
[1731776409502,3.17973,3145.0,3144.7,0.01443627]
[1731776410525,3.17976,3144.9,3144.7,0.01443627]
[1731776414352,4.49007218,3145.0,3144.7,0.01443627]
[1731776414761,3.0,3145.2,3144.7,0.01443627]
[1731776414923,8.74,3145.4,3144.8,3.17975]
[1731776415244,4.48958218,3145.5,3144.9,3.17973]
[1731776415654,4.48958218,3145.5,3145.0,3.17962]
[1731776415655,5.13408709,3145.5,3145.0,3.17962]
[1731776415811,5.13408709,3145.5,3144.8,3.17975]
[1731776416013,5.13408709,3145.5,3144.9,3.53803858]
[1731776416454,4.48937218,3145.7,3145.0,3.17957]
[1731776416619,3.1791,3145.6,3145.0,3.17957]
[1731776416956,3.17917,3145.5,3144.9,0.35835858]
[1731776417158,3.17946,3145.2,3144.7,0.56443627]
[1731776417454,3.17956,3145.1,3144.7,0.56443627]
[1731776417608,3.17956,3145.1,3144.7,0.01443627]
[1731776418752,3.497516,3145.1,3144.7,0.01443627]
[1731776419454,3.497516,3145.1,3144.5,3.73014]
[1731776419653,3.17956,3145.1,3144.5,3.73014]
[1731776419860,6.25440783,3144.9,3144.1,3.18052]
[1731776420172,6.25440783,3144.9,3144.2,0.23777954]
[1731776420335,6.25440783,3144.9,3144.1,3.18052]
[1731776420929,3.18001,3144.7,3144.1,3.18052]
[1731776421233,6.36006,3144.7,3144.1,3.18052]
[1731776421653,3.0,3144.7,3143.7,3.18089]
[1731776421973,3.18048,3144.2,3143.5,3.18113]
[1731776422177,3.18048,3144.2,3143.5,6.36223]
[1731776422532,3.18062,3144.1,3143.8,0.23795076]
[1731776422842,3.18062,3144.1,3143.5,3.1811]
[1731776423037,3.18062,3144.1,3143.6,3.18105]
[1731776423240,3.18062,3144.1,3143.5,3.1811]
[1731776423640,3.18062,3144.1,3143.5,6.36219]
[1731776423827,3.18062,3144.1,3143.6,0.55]
[1731776424028,3.18036,3144.3,3143.6,3.73104]
[1731776424225,3.18066,3144.0,3143.4,3.7312]
[1731776424431,3.18066,3144.0,3143.6,0.55]
[1731776424874,3.18066,3144.0,3143.2,0.55]
[1731776425040,3.18086,3143.8,3143.2,0.55]
[1731776425244,3.18103,3143.7,3143.1,3.18152]
[1731776429440,3.81721,3143.7,3143.1,3.18152]
[1731776430039,3.80773003,3143.9,3143.1,3.18152]
[1731776430244,3.80773003,3143.9,3143.3,3.18136]
[1731776430876,3.07464783,3144.3,3143.4,0.06362425]
[1731776430877,3.18066,3144.0,3143.4,0.06362425]
[1731776431034,3.18035,3144.3,3143.7,3.18096]
[1731776431235,3.18023,3144.5,3144.0,3.18064]
[1731776431535,3.18023,3144.5,3143.8,0.06361574]
[1731776431536,1.82947478,3144.5,3143.9,3.73074]
[1731776432072,1.82947478,3144.5,3143.9,0.55]
[1731776432278,3.18028,3144.4,3143.9,0.55]
[1731776432573,3.18028,3144.4,3143.7,0.55]
[1731776432731,4.09295283,3144.4,3143.9,0.55]
[1731776432934,0.91267283,3144.4,3143.9,3.73071]
[1731776433136,4.82947478,3144.5,3144.0,3.18062]
[1731776433346,3.63688351,3144.6,3143.9,0.55]
[1731776433573,3.17981,3144.9,3144.2,0.55]
[1731776433734,3.17981,3144.9,3144.4,3.18023]
[1731776434136,0.62301609,3144.8,3144.4,3.18023]
[1731776436048,0.62301609,3144.8,3144.6,3.18004]
[1731776437144,0.62301609,3144.8,3144.5,3.18007]
[1731776437368,0.62301609,3144.8,3144.5,3.82245998]
[1731776437876,0.62301609,3144.8,3144.5,3.18007]
[1731776438084,0.62301609,3144.8,3144.6,3.17998]
[1731776438239,0.62301609,3144.8,3144.7,3.17995]
[1731776438794,3.17931,3145.4,3144.6,3.17998]
[1731776439005,3.17931,3145.4,3144.8,3.17984]
[1731776439205,3.95063834,3145.4,3144.8,3.17984]
[1731776439484,0.77132834,3145.4,3144.8,3.17984]
[1731776439684,0.00925778,3145.9,3145.1,3.17954]
[1731776439685,6.17897,3145.7,3145.1,3.17954]
[1731776439985,6.17897,3145.7,3145.1,3.17952]
[1731776440559,3.0,3145.7,3145.1,3.17952]
[1731776440793,6.17894,3145.7,3144.9,3.17968]
[1731776441083,3.07464783,3145.8,3145.3,3.17927]
[1731776441240,3.18806778,3145.9,3145.3,3.17927]
[1731776441241,0.00925778,3145.9,3145.4,3.17924]
[1731776441440,0.62917632,3145.8,3145.4,3.17924]
[1731776441895,0.62917632,3145.8,3145.2,3.17937]
[1731776442202,4.40342456,3145.8,3145.2,3.17937]
[1731776442356,4.40342456,3145.8,3144.3,3.19029]
[1731776442357,6.25384783,3145.5,3144.8,3.17978]
[1731776442561,3.07464783,3145.2,3144.7,0.55]
[1731776442754,6.25416783,3145.2,3144.6,3.17998]
[1731776443183,3.17932,3145.4,3144.8,3.17984]
[1731776443808,3.17995,3144.7,3144.2,3.18042]
[1731776444107,0.317995,3144.6,3144.3,3.18032]
[1731776444272,3.17988,3144.8,3144.2,3.18042]
[1731776444471,3.17996,3144.7,3143.7,3.18087]
[1731776444671,3.18029,3144.4,3143.8,3.18084]
[1731776445181,3.18035,3144.3,3143.6,3.19547627]
[1731776445361,3.18035,3144.3,3143.7,3.18094]
[1731776445555,3.18025,3144.4,3143.8,3.18084]
[1731776445792,3.18016,3144.5,3143.8,3.18084]
[1731776445990,3.18028,3144.4,3143.8,3.18084]
[1731776446204,3.18028,3144.4,3143.6,3.19547627]
[1731776446205,3.18042,3144.3,3143.6,3.19547627]
[1731776446371,3.18062,3144.1,3143.6,0.01443627]
[1731776447012,3.18077,3143.9,3143.6,0.01443627]
[1731776448471,9.25560783,3143.7,3143.6,0.01443627]
[1731776452257,9.89177024,3143.7,3143.6,0.01443627]
[1731776452490,11.19902426,3143.7,3143.6,0.01443627]
[1731776460815,3.18077,3143.9,3143.6,0.01443627]
[1731776461264,6.25531783,3144.0,3143.6,0.01443627]
[1731776461666,3.18077,3143.9,3143.6,0.01443627]
[1731776461901,3.18096,3143.7,3143.6,0.01443627]
[1731776462108,9.25560783,3143.7,3143.6,0.01443627]
[1731776462321,10.49924561,3143.7,3143.6,0.01443627]
[1731776464383,3.18143,3143.3,3142.6,3.18207]
[1731776464703,3.18159,3143.1,3142.5,3.18214]
[1731776465021,3.18159,3143.1,3142.4,0.55]
[1731776465179,3.18183,3142.9,3142.3,3.18229]
[1731776465514,3.18183,3142.9,3142.2,3.18245]
[1731776465515,3.18198,3142.7,3142.2,3.18245]
[1731776465679,3.18198,3142.7,3141.7,3.0]
[1731776465680,3.18198,3142.7,3142.0,0.55]
[1731776465882,3.18198,3142.7,3142.1,3.18257]
[1731776468122,3.18183,3142.9,3142.3,3.18237]
[1731776468623,0.64129722,3143.1,3142.5,3.18216]
[1731776468781,0.64129722,3143.1,3142.3,3.18237]
[1731776468782,3.18174,3143.0,3142.3,3.1823]
[1731776468976,3.18174,3143.0,3142.3,3.50053]
[1731776469389,3.18177,3142.9,3142.3,0.31823]
[1731776469577,3.18195,3142.8,3142.1,3.18256]
[1731776469773,3.18193,3142.8,3142.1,3.18256]
[1731776470224,3.18193,3142.8,3142.0,0.55]
[1731776470521,3.18213,3142.6,3142.1,0.55]
[1731776471722,3.18213,3142.6,3141.4,0.01]
[1731776471723,3.18213,3142.6,3141.9,3.18277]
[1731776471924,3.18213,3142.6,3141.9,3.18271]
[1731776472226,3.18213,3142.6,3142.0,3.18262]
[1731776472524,6.3643,3142.6,3141.9,3.18271]
[1731776472823,3.18213,3142.6,3142.0,3.18267]
[1731776473126,6.25654783,3142.8,3141.8,0.06364831]
[1731776473127,3.1819,3142.8,3141.8,0.06364831]
[1731776473279,3.182,3142.7,3142.0,3.1826]
[1731776473482,3.1819,3142.8,3142.1,3.18257]
[1731776473680,3.1819,3142.8,3142.0,3.1826]
[1731776474011,3.0,3143.0,3142.2,3.18239]
[1731776474179,0.64129722,3143.1,3142.2,3.18239]
[1731776474385,3.0,3142.9,3142.4,3.18221]
[1731776475196,6.18179,3142.9,3142.3,3.18238]
[1731776475482,0.64129722,3143.1,3142.5,3.18217]
[1731776475640,3.0,3143.2,3142.7,3.18196]
[1731776475796,3.0,3143.2,3142.8,3.18185]
[1731776476386,3.0,3143.2,3142.6,3.18203]
[1731776476922,3.18157,3143.1,3142.5,3.18217]
[1731776477122,3.18167,3143.0,3142.4,0.55]
[1731776477420,3.18167,3143.0,3142.4,3.73226]
[1731776477803,3.18157,3143.1,3142.4,3.73226]
[1731776478004,3.0,3143.2,3142.6,3.18199]
[1731776478210,3.0,3143.2,3142.7,3.1819]
[1731776478441,3.0,3143.2,3142.7,3.18197]
[1731776478606,3.0,3143.2,3142.5,3.18215]
[1731776478813,3.18159,3143.1,3142.8,0.01443627]
[1731776478998,7.17148529,3143.2,3142.8,0.01443627]
[1731776479201,3.18163,3143.1,3142.8,0.01443627]
[1731776479393,3.18163,3143.1,3142.4,3.7322]
[1731776479892,3.18178,3142.9,3142.2,3.18246]
[1731776480110,3.18199,3142.7,3142.2,3.18247]
[1731776480314,3.18199,3142.7,3142.1,3.18255]
[1731776480547,3.18199,3142.7,3141.1,6.26821783]
[1731776480548,3.18223,3142.5,3141.8,3.18281]
[1731776480747,3.18223,3142.5,3141.9,0.23796236]
[1731776480748,3.1823,3142.4,3141.9,0.23796236]
[1731776480918,3.1823,3142.4,3141.8,3.18281]
[1731776481315,3.1825,3142.2,3141.7,3.18297]
[1731776481663,3.1824,3142.3,3141.7,3.18297]
[1731776482416,3.318223,3142.5,3141.9,3.18278]
[1731776482648,3.8323323,3142.4,3141.9,3.18278]
[1731776482962,3.1824,3142.3,3141.7,3.18297]
[1731776483869,3.1824,3142.3,3141.6,0.06365485]
[1731776484071,3.18247,3142.3,3141.7,3.18297]
[1731776484480,3.18256,3142.2,3141.6,3.18305]
[1731776484680,3.18255,3142.2,3141.6,3.18305]
[1731776485175,3.18255,3142.2,3141.7,3.18298]
[1731776485356,3.18255,3142.2,3141.4,3.18329]
[1731776485357,3.18277,3142.0,3141.4,3.18329]
[1731776485727,0.38325823,3142.2,3141.5,3.18311]
[1731776485930,3.18264,3142.1,3141.5,3.18311]
[1731776486129,3.18264,3142.1,3141.3,3.18337]
[1731776486354,3.53917982,3142.1,3141.6,3.18306]
[1731776487548,3.53917982,3142.1,3141.4,3.18328]
[1731776488033,3.18275,3142.0,3141.4,3.18328]
[1731776488465,3.18285,3141.9,3141.4,3.18328]
[1731776488680,3.18285,3141.9,3141.2,3.18345]
[1731776488835,3.18271,3142.0,3141.3,0.23776219]
[1731776489035,3.84410477,3142.0,3141.4,3.18323]
[1731776489231,3.18286,3141.9,3141.3,3.18338]
[1731776489465,3.84410477,3142.0,3141.3,3.18338]
[1731776489738,3.1829,3141.8,3141.3,3.18338]
[1731776490178,3.18299,3141.7,3141.1,3.7335]
[1731776490736,3.1829,3141.8,3141.2,3.18349]
[1731776491180,0.31829,3141.7,3141.2,3.18349]
[1731776491480,3.50134,3141.7,3141.1,3.18351]
[1731776491864,3.50134,3141.7,3141.2,3.18348]
[1731776492074,0.31829,3141.7,3141.2,3.18348]
[1731776492580,3.50128,3141.7,3141.2,3.18348]
[1731776493832,1.28650416,3142.0,3141.5,3.18312]
[1731776493833,0.62510939,3142.0,3141.5,3.18312]
[1731776494167,0.62510939,3142.0,3141.3,3.1833]
[1731776494168,3.18286,3141.9,3141.3,3.1833]
[1731776494908,3.18286,3141.9,3141.4,3.18327]
[1731776496207,0.62510939,3142.0,3141.3,3.1833]
[1731776496208,3.5448811,3141.8,3141.3,3.18338]
[1731776496385,3.18279,3141.9,3141.3,3.18331]
[1731776496592,3.18279,3141.9,3141.4,3.18326]
[1731776496755,3.18261,3142.1,3141.4,3.18326]
[1731776496960,3.18261,3142.1,3141.6,3.18307]
[1731776497163,3.0,3142.3,3141.6,3.18307]
[1731776497363,3.18254,3142.2,3141.6,3.18307]
[1731776497590,3.0,3142.1,3141.6,3.18307]
[1731776497772,3.62167227,3142.1,3141.6,3.18307]
[1731776499179,3.0,3142.3,3141.6,3.18307]
[1731776499378,3.0,3142.5,3141.8,3.18288]
[1731776499586,6.1824,3142.3,3141.8,3.18284]
[1731776499775,6.1824,3142.3,3141.7,3.18293]
[1731776500612,9.36487,3142.3,3141.7,3.18293]
[1731776500865,0.936487,3142.2,3141.7,3.18293]
[1731776501502,0.936487,3142.2,3141.8,3.18288]
[1731776501705,6.1824,3142.3,3141.6,3.18302]
[1731776501910,6.1824,3142.3,3141.6,0.55]
[1731776502120,6.1824,3142.3,3141.7,3.18298]
[1731776502928,3.18219,3142.5,3141.7,0.06365569]
[1731776503089,3.182,3142.7,3142.0,3.18262]
[1731776503421,3.18208,3142.6,3142.0,3.18261]
[1731776504026,3.18208,3142.6,3142.1,3.18255]
[1731776504189,0.65151326,3142.7,3142.0,3.1826]
[1731776504526,3.83354326,3142.7,3142.1,3.18251]
[1731776505331,0.65151326,3142.7,3142.1,3.18251]
[1731776505682,3.0,3142.9,3142.3,3.18231]
[1731776505828,3.0,3142.9,3142.3,3.1823]
[1731776506136,3.0,3142.9,3142.5,3.18217]
[1731776506441,3.62138677,3142.9,3142.5,3.18217]
[1731776506643,3.18139,3143.3,3142.7,3.1819]
[1731776506939,3.18139,3143.3,3142.7,3.18189]
[1731776507100,3.18139,3143.3,3142.8,3.18185]
[1731776507503,9.43714783,3143.5,3142.8,3.18185]
[1731776507707,4.12498478,3143.4,3142.8,3.18185]
[1731776508146,4.12507478,3143.4,3142.8,3.18185]
[1731776508449,3.82241696,3143.5,3142.9,3.18176]
[1731776508590,3.82241696,3143.5,3142.7,6.36386]
[1731776508791,3.18131,3143.4,3142.8,0.01443627]
[1731776509238,3.18131,3143.4,3142.8,3.19623627]
[1731776509738,3.18131,3143.4,3142.9,3.18176]
[1731776510737,3.18149,3143.2,3142.8,0.01443627]
[1731776510961,0.64117696,3143.5,3142.8,0.01443627]
[1731776510962,6.25641783,3142.9,3142.8,0.01443627]
[1731776511241,9.25641783,3142.9,3142.8,0.01443627]
[1731776514319,9.90208601,3142.9,3142.8,0.01443627]
[1731776514635,11.52962661,3142.9,3142.8,0.01443627]
[1731776519297,6.90208601,3142.9,3142.8,0.01443627]
[1731776524884,9.90208601,3142.9,3142.8,0.01443627]
[1731776525894,6.82743818,3142.9,3142.8,0.01443627]
[1731776526353,3.82743818,3142.9,3142.8,0.01443627]
[1731776528968,6.90208601,3142.9,3142.8,0.01443627]
[1731776529170,8.22862661,3142.9,3142.8,0.01443627]
[1731776529691,3.6450217,3143.0,3142.8,0.01443627]
[1731776530284,3.0,3143.0,3142.8,0.01443627]
[1731776530655,3.18129,3143.4,3142.8,3.19629627]
[1731776530999,3.18121,3143.5,3142.8,6.37806627]
[1731776531207,8.74,3143.6,3143.0,3.1816]
[1731776531701,3.18154,3143.2,3142.8,0.6522429]
[1731776531883,3.18154,3143.2,3142.8,0.01443627]
[1731776532102,3.18158,3143.1,3142.8,0.01443627]
[1731776532487,3.18144,3143.3,3142.8,0.01443627]
[1731776532820,3.18124,3143.5,3142.9,3.18177]
[1731776532979,3.18129,3143.4,3142.8,0.01443627]
[1731776533178,3.07464783,3143.2,3142.8,0.01443627]
[1731776533489,3.18165,3143.1,3142.8,0.01443627]
[1731776533669,3.09285,3143.1,3142.8,0.01443627]
[1731776533875,3.18168,3143.0,3142.8,0.01443627]
[1731776534629,6.25641783,3142.9,3142.8,0.01443627]
[1731776534776,9.25641783,3142.9,3142.8,0.01443627]
[1731776535274,9.26641783,3142.9,3142.8,0.01443627]
[1731776536621,9.89838855,3142.9,3142.8,0.01443627]
[1731776537328,9.88838855,3142.9,3142.8,0.01443627]
[1731776537483,12.4514237,3142.9,3142.8,0.01443627]
[1731776537835,12.4414237,3142.9,3142.8,0.01443627]
[1731776538188,12.4514237,3142.9,3142.8,0.01443627]
[1731776539329,3.18251,3142.2,3141.6,3.18308]
[1731776539536,3.18251,3142.2,3141.7,0.373308]
[1731776540689,3.18251,3142.2,3141.7,3.556288]
[1731776540931,3.18229,3142.4,3141.7,3.556288]
[1731776541229,3.18229,3142.4,3141.8,3.18287]
[1731776544990,3.18229,3142.4,3141.7,3.556278]
[1731776545183,3.18229,3142.4,3141.7,3.18297]
[1731776546190,6.36467,3142.4,3141.7,3.18297]
[1731776546490,3.18229,3142.4,3141.7,3.18297]
[1731776546939,3.62299983,3142.5,3142.0,3.18267]
[1731776547100,3.18179,3142.9,3142.3,3.18237]
[1731776547287,6.25619783,3143.2,3141.5,0.56]
[1731776547288,3.18204,3142.7,3142.1,3.18258]
[1731776547632,3.18179,3142.9,3142.3,3.18229]
[1731776548006,3.81160596,3143.1,3142.3,3.18229]
[1731776548189,3.18169,3143.0,3142.3,3.18229]
[1731776548538,3.0,3142.9,3142.3,3.18229]
[1731776548696,3.18178,3142.9,3142.4,0.318229]
[1731776549506,3.18187,3142.8,3142.4,0.318229]
[1731776551008,3.0,3143.0,3142.4,0.318229]
[1731776551210,3.0,3143.0,3142.5,3.18217]
[1731776551608,3.18194,3142.8,3142.4,0.318229]
[1731776551795,3.18194,3142.8,3142.2,3.1824]
[1731776551998,3.18185,3142.9,3142.2,6.36482]
[1731776552443,3.81161596,3143.1,3142.1,0.55]
[1731776552444,0.63001596,3143.1,3142.1,0.55]
[1731776552742,3.18144,3143.3,3142.4,3.1822]
[1731776552950,3.0,3143.0,3142.4,3.818666]
[1731776553538,3.0,3143.0,3142.5,3.18217]
[1731776553950,2.98556373,3143.0,3142.5,3.18217]
[1731776555215,2.98556373,3143.0,3142.6,3.18205]
[1731776555847,0.63436408,3143.3,3142.7,3.18189]
[1731776556143,0.63436408,3143.3,3142.7,3.18193]
[1731776556442,0.63436408,3143.3,3142.8,0.318193]
[1731776557043,0.63436408,3143.3,3142.9,3.18176]
[1731776557700,0.63436408,3143.3,3142.8,3.500053]
[1731776557907,3.1815,3143.2,3142.8,0.318193]
[1731776558149,3.18194,3142.8,3142.2,3.18246]
[1731776558397,3.18209,3142.6,3142.0,3.18266]
[1731776558681,3.18194,3142.8,3142.1,3.18258]
[1731776558829,3.18194,3142.8,3142.2,0.636524]
[1731776559180,3.18194,3142.8,3142.2,3.818994]
[1731776559333,6.25613783,3143.2,3142.2,0.70016955]
[1731776559690,3.18149,3143.2,3142.6,3.18206]
[1731776560435,3.18164,3143.1,3142.5,3.18215]
[1731776560629,3.18149,3143.2,3142.4,3.18226]
[1731776560946,3.18181,3142.9,3142.3,3.73236]
[1731776561286,3.18181,3142.9,3142.3,3.18236]
[1731776561433,3.1819,3142.8,3142.4,0.636476]
[1731776561641,3.1819,3142.8,3142.1,3.18251]
[1731776561866,3.1819,3142.8,3142.2,3.18246]
[1731776562248,3.18181,3142.9,3142.3,3.18234]
[1731776562450,3.18172,3143.0,3142.1,3.1825]
[1731776562451,3.18191,3142.8,3142.1,3.1825]
[1731776562654,3.18191,3142.8,3142.2,3.18247]
[1731776562855,3.18169,3143.0,3142.3,3.18237]
[1731776563054,6.18158,3143.1,3142.5,3.18217]
[1731776563277,0.63436408,3143.3,3142.5,3.18217]
[1731776563278,3.81579408,3143.3,3142.5,3.18217]
[1731776563873,3.18131,3143.4,3142.1,0.07363586]
[1731776564053,3.18078,3143.9,3143.1,3.18156]
[1731776564054,3.18102,3143.7,3143.1,3.18156]
[1731776564255,8.74,3144.3,3142.3,0.01]
[1731776564256,3.18133,3143.4,3142.7,3.18193]
[1731776564549,6.36269,3143.4,3142.7,3.18193]
[1731776564772,3.82229405,3143.4,3142.7,3.18193]
[1731776564952,3.82229405,3143.4,3142.8,3.18183]
[1731776565915,3.82229405,3143.4,3142.9,3.18175]
[1731776565916,0.64096405,3143.4,3142.9,3.18175]
[1731776566081,0.64096405,3143.4,3142.9,3.818118]
[1731776566280,3.18137,3143.3,3142.9,0.636368]
[1731776566483,3.82229405,3143.4,3142.9,0.636368]
[1731776566684,3.82229405,3143.4,3142.8,3.18187]
[1731776568400,3.82229405,3143.4,3142.6,3.18198]
[1731776568579,3.18148,3143.2,3142.6,3.18198]
[1731776569819,3.18148,3143.2,3142.4,3.49991]
[1731776570026,3.18183,3142.9,3142.3,3.18238]
[1731776570518,3.18183,3142.9,3142.3,3.18232]
[1731776570673,6.3637,3142.9,3142.3,3.18232]
[1731776570876,6.3637,3142.9,3142.4,0.3177]
[1731776570877,3.18183,3142.9,3142.4,0.3177]
[1731776571177,3.18198,3142.7,3142.4,0.3177]
[1731776571594,6.36405,3142.7,3142.4,0.3177]
[1731776571919,3.18198,3142.7,3142.1,3.1825]
[1731776572092,3.18198,3142.7,3142.1,3.50075]
[1731776572708,3.18211,3142.6,3142.1,0.31825]
[1731776573337,3.0,3143.1,3142.1,0.31825]
[1731776573620,6.36392,3142.8,3142.1,3.50081]
[1731776574023,3.18196,3142.8,3142.1,3.50081]
[1731776574226,3.18196,3142.8,3142.1,0.31825]
[1731776574378,3.18196,3142.8,3142.1,3.50081]
[1731776575825,3.07464783,3143.2,3142.1,3.50081]
[1731776575998,3.18136,3143.3,3142.3,3.18231]
[1731776576195,3.18177,3143.0,3142.3,3.18231]
[1731776576394,3.18169,3143.0,3142.3,3.1823]
[1731776576880,3.18169,3143.0,3142.4,3.18222]
[1731776578084,3.18169,3143.0,3142.2,3.532481]
[1731776578286,3.18203,3142.7,3142.0,3.18267]
[1731776578586,3.1821,3142.6,3142.0,3.18267]
[1731776579183,3.18221,3142.5,3142.0,3.18267]
[1731776579386,3.18203,3142.7,3142.0,3.18267]
[1731776579616,3.18208,3142.6,3142.0,3.18267]
[1731776579923,3.18235,3142.4,3142.0,0.66832]
[1731776580130,3.18235,3142.4,3141.8,3.50053]
[1731776581036,3.18191,3142.8,3142.2,3.18242]
[1731776581330,3.18208,3142.6,3142.0,3.18268]
[1731776581625,3.18208,3142.6,3142.0,3.851001]
[1731776582010,6.36424,3142.6,3142.0,3.851001]
[1731776582216,3.18224,3142.5,3142.0,0.668321]
[1731776582733,3.18208,3142.6,3142.0,3.850981]
[1731776583101,3.18208,3142.6,3142.1,3.18257]
[1731776584028,3.18208,3142.6,3142.0,0.668321]
[1731776584528,3.18208,3142.6,3142.0,3.851001]
[1731776585330,3.18188,3142.8,3142.1,3.18258]
[1731776585625,6.36385,3142.8,3142.1,3.18258]
[1731776585837,3.18198,3142.7,3142.1,3.18258]
[1731776586622,3.18188,3142.8,3142.1,3.18258]
[1731776586830,6.36426,3142.6,3141.9,3.1827]
[1731776587031,6.36426,3142.6,3141.8,3.50052]
[1731776587032,3.1823,3142.4,3141.8,3.50052]
[1731776587326,3.1823,3142.4,3141.9,3.18277]
[1731776587624,3.1823,3142.4,3142.0,0.3177]
[1731776588024,3.1823,3142.4,3141.8,3.18282]
[1731776588226,3.1824,3142.3,3141.6,3.50075]
[1731776588456,3.1824,3142.3,3141.6,7.033825]
[1731776588590,3.1824,3142.3,3141.7,3.18298]
[1731776588793,3.1826,3142.1,3141.4,3.18325]
[1731776589138,3.18289,3141.8,3140.7,3.5258573]
[1731776589288,3.18304,3141.7,3141.1,3.18357]
[1731776589712,3.18319,3141.6,3141.0,0.06366729]
[1731776589926,3.18307,3141.7,3141.0,3.1836]
[1731776590123,3.1832,3141.5,3141.0,3.1836]
[1731776590436,3.1832,3141.5,3141.0,3.53373]
[1731776591441,3.1833,3141.4,3140.8,3.24749072]
[1731776591593,3.1833,3141.4,3140.8,3.18382]
[1731776593834,3.18323,3141.5,3140.9,3.18378]
[1731776594491,3.18323,3141.5,3140.7,3.18395]
[1731776594693,3.1833,3141.4,3140.8,3.502295]
[1731776595289,3.1832,3141.5,3140.9,3.18376]
[1731776598607,3.1833,3141.4,3140.8,0.318395]
[1731776598816,3.1833,3141.4,3140.8,3.502285]
[1731776599002,3.1832,3141.5,3140.9,3.8524105]
[1731776600476,3.1832,3141.5,3140.9,7.0361205]
[1731776600623,3.18312,3141.6,3141.0,3.18368]
[1731776601928,3.18288,3141.9,3141.2,3.18346]
[1731776601929,3.0,3141.8,3141.2,3.18346]
[1731776602128,6.18291,3141.8,3141.2,3.501806]
[1731776602323,3.183,3141.7,3141.2,0.318346]
[1731776602523,3.18312,3141.6,3141.0,3.18367]
[1731776605675,3.80649348,3141.8,3141.2,3.18348]
[1731776607129,3.80649348,3141.8,3141.3,3.18338]
[1731776607337,3.80649348,3141.8,3141.2,3.18348]
[1731776607794,3.18302,3141.7,3141.2,3.18348]
[1731776607944,3.80649348,3141.8,3141.0,3.18366]
[1731776607945,3.1831,3141.6,3141.0,3.18366]
[1731776608372,3.1832,3141.5,3141.1,0.318366]
[1731776608570,3.1832,3141.5,3141.0,3.18366]
[1731776609046,3.1831,3141.6,3141.0,3.18366]
[1731776610092,3.18321,3141.5,3140.9,3.18379]
[1731776610748,3.18321,3141.5,3141.0,3.18369]
[1731776611849,0.62358348,3141.8,3140.8,3.18385]
[1731776612044,3.1833,3141.4,3140.8,3.18385]
[1731776613198,3.18323,3141.5,3140.3,6.24802355]
[1731776613406,3.18318,3141.6,3140.9,3.18379]
[1731776613957,3.18318,3141.6,3140.5,0.06367746]
[1731776613958,3.18335,3141.4,3140.7,3.18391]
[1731776614283,6.36673,3141.4,3140.7,3.18391]
[1731776614488,3.18335,3141.4,3140.7,3.18391]
[1731776614799,6.36673,3141.4,3140.8,3.18384]
[1731776614958,3.18339,3141.3,3140.8,3.18384]
[1731776615787,3.18339,3141.3,3140.7,0.318391]
[1731776616608,3.18339,3141.3,3140.8,3.18389]
[1731776616770,3.18339,3141.3,3140.7,0.318391]
[1731776617106,3.18339,3141.3,3140.7,3.18392]
[1731776618773,3.18339,3141.3,3140.7,6.36785]
[1731776618956,3.18322,3141.5,3140.7,0.636785]
[1731776619156,3.18322,3141.5,3140.5,1.31322393]
[1731776619157,3.18322,3141.5,3140.9,3.18371]
[1731776619905,3.18303,3141.7,3140.8,3.1839]
[1731776620202,3.18303,3141.7,3141.1,3.18359]
[1731776624204,3.0,3142.0,3141.3,3.18339]
[1731776624561,3.1827,3142.0,3141.4,3.18321]